fUSD/lending_fUSD_20240217
["ID","MTS","AMOUNT","RATE_DAILY","PERIOD"]
[314312822,1708175451659,-3000.0,0.00053,47]
[314312823,1708175451675,-5000.0,0.00053,62]
[314312824,1708175451690,-1306.52860987,0.00053,30]
[314312825,1708175451701,-3000.0,0.00053,47]
[314312826,1708175451712,-5000.0,0.00053,62]
[314312827,1708175451722,-3000.0,0.00053,47]
[314312828,1708175451732,-10000.0,0.00053,25]
[314312829,1708175451932,-11436.33495472,0.00053,60]
[314312830,1708175451958,-9350.6771084,0.00053,120]
[314312831,1708175451967,-9606.0,0.00053,120]
[314312832,1708175451977,-18681.30000075,0.00053,120]
[314312833,1708175451987,-156.0,0.00053,7]
[314312834,1708175451996,-2517.0,0.00053,120]
[314312835,1708175452007,-151.4,0.00053,120]
[314312836,1708175452016,-151.4,0.00053,120]
[314312837,1708175452025,-151.4,0.00053,120]
[314312838,1708175452034,-151.4,0.00053,120]
[314312839,1708175452043,-151.4,0.00053,120]
[314312840,1708175452053,-151.4,0.00053,120]
[314312841,1708175452062,-151.4,0.00053,120]
[314312842,1708175452071,-151.4,0.00053,120]
[314312843,1708175452080,-151.4,0.00053,120]
[314312844,1708175452090,-151.4,0.00053,120]
[314312845,1708175452099,-151.4,0.00053,120]
[314312846,1708175452108,-3016.4979127,0.00053017,2]
[314312847,1708175452117,-899.15804456,0.00053053,3]
[314312848,1708175452128,-500.0,0.00053104,120]
[314312849,1708175452137,-1000.0,0.00053106,45]
[314312850,1708175452146,-166.49676424,0.00053121,2]
[314312851,1708175452155,-223.021788,0.00053148,102]
[314312852,1708175452165,-200.0,0.0005315,7]
[314312853,1708175452174,-332.60186682,0.00053188,60]
[314312854,1708175452183,-500.0,0.00053221,120]
[314312855,1708175452192,-370.0,0.00053263,30]
[314312856,1708175452201,-278.77,0.000533,30]
[314312857,1708175452210,-385.32,0.000533,120]
[314312858,1708175452220,-160.0,0.00053315,120]
[314312859,1708175452229,-205.0,0.00053333,40]
[314312860,1708175452239,-500.0,0.00053337,120]
[314312861,1708175452248,-25000.0,0.000534,120]
[314312862,1708175452257,-601.72,0.00053425,30]
[314312863,1708175452267,-150.0,0.00053425,30]
[314312864,1708175452276,-412.14,0.00053425,30]
[314312865,1708175452285,-419.0,0.00053425,30]
[314312866,1708175452294,-343.57,0.00053425,30]
[314312867,1708175452303,-150.0,0.00053425,30]
[314312868,1708175452312,-318.82,0.00053425,30]
[314312869,1708175452321,-150.0,0.00053425,30]
[314312870,1708175452330,-343.57,0.00053425,30]
[314312871,1708175452338,-419.0,0.00053425,30]
[314312872,1708175452348,-412.14,0.00053425,30]
[314312873,1708175452357,-412.14,0.00053425,30]
[314312874,1708175452366,-419.0,0.00053425,30]
[314312875,1708175452375,-150.0,0.00053425,30]
[314312876,1708175452385,-343.57,0.00053425,30]
[314312877,1708175452394,-150.0,0.00053425,30]
[314312878,1708175452404,-412.14,0.00053425,30]
[314312879,1708175452413,-419.0,0.00053425,30]
[314312880,1708175452422,-228.24502974,0.00053428,13]
[314312881,1708175452431,-184.22139781,0.00053428,13]
[314312882,1708175452440,-223.021788,0.00053448,103]
[314312883,1708175452450,-500.0,0.00053454,120]
[314312884,1708175452459,-4100.85682883,0.000535,90]
[314312885,1708175452468,-184.57,0.000535,30]
[314312886,1708175452477,-156.0,0.000535,8]
[314312887,1708175452486,-153.0,0.00053503,120]
[314312888,1708175452495,-500.0,0.0005357,120]
[314312889,1708175452504,-18000.0,0.000536,60]
[314312890,1708175452513,-500.0,0.00053687,120]
[314312891,1708175452523,-200.0,0.00053698,7]
[314312892,1708175452531,-405.51,0.00053699,30]
[314312893,1708175452540,-405.51,0.00053699,30]
[314312894,1708175452550,-405.51,0.00053699,30]
[314312895,1708175452560,-405.51,0.00053699,30]
[314312896,1708175452569,-405.51,0.00053699,30]
[314312897,1708175452579,-405.51,0.00053699,30]
[314312898,1708175452588,-409.85,0.00053699,30]
[314312899,1708175452598,-160.0,0.00053699,120]
[314312900,1708175452607,-158.65,0.00053699,120]
[314312901,1708175452616,-18606.39563081,0.00053709,4]
[314312902,1708175452625,-223.021788,0.00053748,103]
[314312903,1708175452635,-5467.218785,0.000538,96]
[314312904,1708175452644,-500.0,0.00053804,120]
[314312905,1708175452653,-370.0,0.00053812,30]
[314312906,1708175452664,-332.60186682,0.00053817,60]
[314312907,1708175452673,-2017.01990504,0.0005388,90]
[314312908,1708175452682,-25000.0,0.000539,120]
[314312909,1708175452691,-500.0,0.0005392,120]
[314312910,1708175452701,-160.0,0.00053973,120]
[314312911,1708175452709,-150.0,0.00053999,60]
[314312912,1708175452718,-100000.0,0.00054,44]
[314312913,1708175452728,-300.0,0.00054,54]
[314312914,1708175452737,-94909.25653396,0.00054,120]
[314312915,1708175452746,-182.00450485,0.00054,120]
[314312916,1708175452755,-10000.0,0.00054,120]
[314312917,1708175452764,-15643.76944361,0.00054,120]
[314312918,1708175452773,-6238.39,0.00054,30]
[314312919,1708175452783,-508.8302198,0.00054,7]
[314312920,1708175452793,-156.0,0.00054,9]
[314312921,1708175452802,-20656.94976191,0.00054,45]
[314312922,1708175452811,-48900.0,0.00054,30]
[314312923,1708175452820,-898.0,0.00054,30]
[314312924,1708175452830,-347.0,0.00054,30]
[314312925,1708175452839,-922.3,0.00054,30]
[314312926,1708175452848,-500.0,0.00054037,120]
[314312927,1708175452857,-153.0,0.00054051,120]
[314312928,1708175452867,-16000.0,0.00054057,20]
[314312929,1708175452876,-16000.0,0.00054066,20]
[314312930,1708175452885,-8805.47400636,0.00054067,7]
[314312931,1708175452894,-1026.15532951,0.00054067,7]
[314312932,1708175452903,-158.166395,0.00054085,30]
[314312933,1708175452913,-196.409248,0.00054085,30]
[314312934,1708175452922,-223.021788,0.00054148,103]
[314312935,1708175452931,-500.0,0.00054153,120]
[314312936,1708175452942,-153.31471587,0.00054224,60]
[314312937,1708175452951,-200.0,0.00054246,7]
[314312938,1708175452961,-412.14,0.00054247,30]
[314312939,1708175452970,-412.14,0.00054247,30]
[314312940,1708175452979,-412.14,0.00054247,30]
[314312941,1708175452988,-412.14,0.00054247,30]
[314312942,1708175452997,-412.14,0.00054247,30]
[314312943,1708175453006,-412.14,0.00054247,30]
[314312944,1708175453016,-718.18,0.00054247,30]
[314312945,1708175453025,-500.0,0.0005427,120]
[314312946,1708175453034,-5331.02501207,0.00054348,31]
[314312947,1708175453044,-370.0,0.00054361,30]
[314312948,1708175453053,-5420.0,0.00054383,60]
[314312949,1708175453062,-500.0,0.00054386,120]
[314312950,1708175453071,-25000.0,0.000544,120]
[314312951,1708175453080,-98998.98075124,0.000544,120]
[314312952,1708175453091,-26244.77252257,0.0005444,15]
[314312953,1708175453100,-223.021788,0.00054448,103]
[314312954,1708175453109,-36688.17354836,0.0005449,120]
[314312955,1708175453118,-3000.0,0.000545,50]
[314312956,1708175453127,-5000.0,0.000545,64]
[314312957,1708175453137,-5000.0,0.000545,64]
[314312958,1708175453145,-5000.0,0.000545,64]
[314312959,1708175453154,-3000.0,0.000545,50]
[314312960,1708175453163,-156.0,0.000545,10]
[314312961,1708175453172,-5012.46,0.000545,2]
[314312962,1708175453181,-500.0,0.00054503,120]
[314312963,1708175453190,-451968.39437965,0.00054546,120]
[314312964,1708175453200,-160.0,0.00054548,120]
[314312965,1708175453208,-153.0,0.00054599,120]
[314312966,1708175453217,-500.0,0.0005462,120]
[314312967,1708175453226,-160.0,0.0005463,120]
[314312968,1708175453235,-205.0,0.00054667,44]
[314312969,1708175453244,-228.24502974,0.00054713,14]
[314312970,1708175453253,-184.22139781,0.00054713,14]
[314312971,1708175453262,-500.0,0.00054736,120]
[314312972,1708175453272,-223.021788,0.00054748,107]
[314312973,1708175453281,-800.0,0.0005479,30]
[314312974,1708175453290,-800.0,0.0005479,30]
[314312975,1708175453298,-500.0,0.00054793,120]
[314312976,1708175453307,-15663.82651064,0.00054794,2]
[314312977,1708175453317,-539.50685175,0.00054794,30]
[314312978,1708175453326,-500.0,0.00054794,120]
[314312979,1708175453335,-500.0,0.00054794,120]
[314312980,1708175453344,-1005.42496678,0.00054794,2]
[314312981,1708175453353,-531.61706176,0.00054794,120]
[314312982,1708175453362,-533.82285125,0.00054794,120]
[314312983,1708175453371,-509.69932775,0.00054794,120]
[314312984,1708175453381,-500.0,0.00054794,120]
[314312985,1708175453390,-537.64283913,0.00054794,120]
[314312986,1708175453399,-500.0,0.00054794,120]
[314312987,1708175453408,-500.0,0.00054794,120]
[314312988,1708175453418,-500.0,0.00054794,120]
[314312989,1708175453427,-500.0,0.00054794,120]
[314312990,1708175453436,-522.03454508,0.00054794,120]
[314312991,1708175453445,-500.0,0.00054794,120]
[314312992,1708175453454,-500.0,0.00054794,120]
[314312993,1708175453463,-1000.0,0.00054794,2]
[314312994,1708175453472,-1000.7444072,0.00054794,2]
[314312995,1708175453481,-521.07936749,0.00054794,120]
[314312996,1708175453490,-511.70092471,0.00054794,120]
[314312997,1708175453500,-527.9155053,0.00054794,120]
[314312998,1708175453509,-200.0,0.00054794,30]
[314312999,1708175453518,-500.0,0.00054794,120]
[314313000,1708175453527,-500.0,0.00054794,120]
[314313001,1708175453536,-494.2555993,0.00054794,120]
[314313002,1708175453546,-500.0,0.00054794,120]
[314313003,1708175453555,-1025.71389737,0.00054794,7]
[314313004,1708175453565,-500.0,0.00054794,120]
[314313005,1708175453574,-522.18703012,0.00054794,120]
[314313006,1708175453584,-500.0,0.00054794,120]
[314313007,1708175453593,-512.21867618,0.00054794,120]
[314313008,1708175453602,-525.54881652,0.00054794,120]
[314313009,1708175453611,-500.0,0.00054794,2]
[314313010,1708175453620,-519.17862808,0.00054794,120]
[314313011,1708175453630,-517.58227991,0.00054794,120]
[314313012,1708175453639,-507.99460736,0.00054794,7]
[314313013,1708175453648,-537.13615495,0.00054794,120]
[314313014,1708175453657,-500.0,0.00054794,120]
[314313015,1708175453667,-518.62396801,0.00054794,120]
[314313016,1708175453677,-518.61050765,0.00054794,120]
[314313017,1708175453686,-500.0,0.00054794,120]
[314313018,1708175453695,-527.55136183,0.00054794,120]
[314313019,1708175453705,-500.0,0.00054794,120]
[314313020,1708175453715,-317.36512283,0.00054794,120]
[314313021,1708175453724,-500.0,0.00054794,120]
[314313022,1708175453734,-517.69436096,0.00054794,120]
[314313023,1708175453743,-563.35992792,0.00054794,120]
[314313024,1708175453753,-500.0,0.00054794,120]
[314313025,1708175453763,-503.07614817,0.00054794,120]
[314313026,1708175453773,-535.95951786,0.00054794,120]
[314313027,1708175453782,-589.7800519,0.00054794,120]
[314313028,1708175453792,-507.45173941,0.00054794,120]
[314313029,1708175453801,-500.0,0.00054794,120]
[314313030,1708175453810,-404.07000559,0.00054794,120]
[314313031,1708175453820,-500.0,0.00054794,120]
[314313032,1708175453829,-543.960623,0.00054794,120]
[314313033,1708175453839,-196.65743216,0.00054794,120]
[314313034,1708175453848,-500.0,0.00054794,120]
[314313035,1708175453858,-509.36270005,0.00054794,120]
[314313036,1708175453867,-500.0,0.00054794,2]
[314313037,1708175453877,-512.33358062,0.00054794,120]
[314313038,1708175453887,-500.0,0.00054794,120]
[314313039,1708175453896,-507.75064367,0.00054794,120]
[314313040,1708175453905,-500.0,0.00054794,120]
[314313041,1708175453916,-538.68199028,0.00054794,120]
[314313042,1708175453925,-509.84399914,0.00054794,120]
[314313043,1708175453934,-507.06467811,0.00054794,120]
[314313044,1708175453944,-500.0,0.00054794,120]
[314313045,1708175453956,-500.0,0.00054794,120]
[314313046,1708175453965,-500.0,0.00054794,2]
[314313047,1708175453975,-524.56234278,0.00054794,120]
[314313048,1708175453984,-502.71281984,0.00054794,60]
[314313049,1708175453994,-500.0,0.00054794,120]
[314313050,1708175454003,-529.23879601,0.00054794,120]
[314313051,1708175454108,-536.73753223,0.00054794,120]
[314313052,1708175454118,-526.88269102,0.00054794,14]
[314313053,1708175454127,-510.70103441,0.00054794,120]
[314313054,1708175454137,-494.77414686,0.00054794,120]
[314313055,1708175454146,-510.55731729,0.00054794,120]
[314313056,1708175454156,-500.0,0.00054794,120]
[314313057,1708175454166,-503.16608839,0.00054794,120]
[314313058,1708175454174,-517.69882726,0.00054794,120]
[314313059,1708175454183,-500.0,0.00054794,120]
[314313060,1708175454192,-533.33566868,0.00054794,60]
[314313061,1708175454202,-930.37650066,0.00054794,7]
[314313062,1708175454211,-405.46857021,0.00054794,120]
[314313063,1708175454220,-461.21660472,0.00054794,120]
[314313064,1708175454229,-500.0,0.00054794,120]
[314313065,1708175454238,-500.0,0.00054794,120]
[314313066,1708175454247,-529.07467007,0.00054794,120]
[314313067,1708175454256,-500.0,0.00054794,7]
[314313068,1708175454265,-500.0,0.00054794,120]
[314313069,1708175454274,-500.0,0.00054794,120]
[314313070,1708175454284,-562.38405658,0.00054794,120]
[314313071,1708175454293,-502.21977717,0.00054794,2]
[314313072,1708175454302,-500.0,0.00054794,120]
[314313073,1708175454311,-500.0,0.00054794,120]
[314313074,1708175454320,-500.0,0.00054794,120]
[314313075,1708175454329,-500.0,0.00054794,120]
[314313076,1708175454338,-508.57077032,0.00054794,120]
[314313077,1708175454347,-500.0,0.00054794,120]
[314313078,1708175454356,-500.0,0.00054794,120]
[314313079,1708175454366,-500.0,0.00054794,120]
[314313080,1708175454375,-533.43335921,0.00054794,120]
[314313081,1708175454383,-523.44883114,0.00054794,120]
[314313082,1708175454392,-547.20419848,0.00054794,120]
[314313083,1708175454401,-558.44775531,0.00054794,120]
[314313084,1708175454410,-544.71208913,0.00054794,120]
[314313085,1708175454420,-500.0,0.00054794,120]
[314313086,1708175454429,-500.0,0.00054794,120]
[314313087,1708175454438,-473.21293111,0.00054794,120]
[314313088,1708175454447,-524.39353,0.00054794,120]
[314313089,1708175454456,-500.0,0.00054794,120]
[314313090,1708175454466,-508.87243371,0.00054794,120]
[314313091,1708175454475,-542.51529725,0.00054794,120]
[314313092,1708175454484,-500.0,0.00054794,120]
[314313093,1708175454494,-251.14872431,0.00054794,120]
[314313094,1708175454503,-500.0,0.00054794,120]
[314313095,1708175454512,-500.0,0.00054794,120]
[314313096,1708175454522,-509.12610304,0.00054794,120]
[314313097,1708175454530,-500.0,0.00054794,2]
[314313098,1708175454539,-500.0,0.00054794,120]
[314313099,1708175454549,-500.0,0.00054794,120]
[314313100,1708175454558,-530.49008151,0.00054794,120]
[314313101,1708175454568,-500.0,0.00054794,120]
[314313102,1708175454577,-500.0,0.00054794,120]
[314313103,1708175454586,-532.8526136,0.00054794,120]
[314313104,1708175454595,-555.39074036,0.00054794,120]
[314313105,1708175454604,-500.0,0.00054794,120]
[314313106,1708175454614,-500.0,0.00054794,120]
[314313107,1708175454623,-199.58004,0.00054794,2]
[314313108,1708175454632,-563.18059403,0.00054794,120]
[314313109,1708175454641,-500.0,0.00054794,120]
[314313110,1708175454650,-500.0,0.00054794,120]
[314313111,1708175454659,-443.99661788,0.00054794,2]
[314313112,1708175454669,-500.0,0.00054794,120]
[314313113,1708175454678,-500.0,0.00054794,120]
[314313114,1708175454687,-341.19224171,0.00054794,120]
[314313115,1708175454696,-500.0,0.00054794,120]
[314313116,1708175454705,-500.0,0.00054794,120]
[314313117,1708175454714,-500.0,0.00054794,120]
[314313118,1708175454723,-541.96788447,0.00054794,120]
[314313119,1708175454732,-500.0,0.00054794,2]
[314313120,1708175454741,-519.44408238,0.00054794,120]
[314313121,1708175454751,-500.0,0.00054794,120]
[314313122,1708175454760,-300.95615346,0.00054794,120]
[314313123,1708175454769,-493.74674152,0.00054794,120]
[314313124,1708175454778,-500.0,0.00054794,120]
[314313125,1708175454787,-500.0,0.00054794,120]
[314313126,1708175454797,-500.0,0.00054794,120]
[314313127,1708175454806,-500.0,0.00054794,120]
[314313128,1708175454815,-500.0,0.00054794,120]
[314313129,1708175454824,-500.0,0.00054794,2]
[314313130,1708175454833,-500.0,0.00054794,120]
[314313131,1708175454842,-526.36941242,0.00054794,120]
[314313132,1708175454851,-561.12639382,0.00054794,120]
[314313133,1708175454860,-500.0,0.00054794,120]
[314313134,1708175454869,-500.0,0.00054794,120]
[314313135,1708175454878,-500.0,0.00054794,120]
[314313136,1708175454887,-500.0,0.00054794,120]
[314313137,1708175454896,-500.0,0.00054794,120]
[314313138,1708175454905,-500.0,0.00054794,120]
[314313139,1708175454915,-500.0,0.00054794,120]
[314313140,1708175454924,-552.82396325,0.00054794,120]
[314313141,1708175454933,-500.0,0.00054794,120]
[314313142,1708175454944,-500.5541525,0.00054794,120]
[314313143,1708175454954,-500.0,0.00054794,120]
[314313144,1708175454963,-500.0,0.00054794,120]
[314313145,1708175454972,-500.0,0.00054794,7]
[314313146,1708175454982,-500.0,0.00054794,120]
[314313147,1708175454992,-610.61,0.00054794,2]
[314313148,1708175455001,-528.6689076,0.00054794,30]
[314313149,1708175455010,-500.0,0.00054794,120]
[314313150,1708175455019,-500.0,0.00054794,120]
[314313151,1708175455029,-500.0,0.00054794,120]
[314313152,1708175455039,-566.42358745,0.00054794,120]
[314313153,1708175455048,-500.0,0.00054794,120]
[314313154,1708175455057,-500.0,0.00054794,120]
[314313155,1708175455066,-525.89740978,0.00054794,120]
[314313156,1708175455076,-500.0,0.00054794,120]
[314313157,1708175455085,-500.0,0.00054794,120]
[314313158,1708175455095,-702.13858382,0.00054794,120]
[314313159,1708175455104,-500.0,0.00054794,120]
[314313160,1708175455113,-555.44200631,0.00054794,120]
[314313161,1708175455122,-500.0,0.00054794,120]
[314313162,1708175455131,-500.0,0.00054794,120]
[314313163,1708175455139,-537.5023735,0.00054794,120]
[314313164,1708175455148,-530.46648344,0.00054794,120]
[314313165,1708175455158,-593.26721663,0.00054794,120]
[314313166,1708175455170,-500.0,0.00054794,120]
[314313167,1708175455179,-500.0,0.00054794,120]
[314313168,1708175455188,-509.11628563,0.00054794,120]
[314313169,1708175455197,-524.41389706,0.00054794,120]
[314313170,1708175455206,-524.45843297,0.00054794,120]
[314313171,1708175455214,-527.15195277,0.00054794,120]
[314313172,1708175455224,-500.0,0.00054794,120]
[314313173,1708175455233,-509.41875878,0.00054794,120]
[314313174,1708175455242,-509.0460758,0.00054794,120]
[314313175,1708175455251,-500.0,0.00054794,120]
[314313176,1708175455260,-500.0,0.00054794,120]
[314313177,1708175455269,-518.00403318,0.00054794,120]
[314313178,1708175455279,-512.59005959,0.00054794,120]
[314313179,1708175455288,-500.0,0.00054794,120]
[314313180,1708175455297,-642.82248556,0.00054794,120]
[314313181,1708175455307,-500.0,0.00054794,120]
[314313182,1708175455316,-500.0,0.00054794,120]
[314313183,1708175455325,-524.66876978,0.00054794,120]
[314313184,1708175455334,-500.0,0.00054794,120]
[314313185,1708175455343,-500.0,0.00054794,120]
[314313186,1708175455352,-598.42691498,0.00054794,120]
[314313187,1708175455361,-515.96421052,0.00054794,120]
[314313188,1708175455370,-537.06737215,0.00054794,120]
[314313189,1708175455379,-500.0,0.00054794,120]
[314313190,1708175455388,-500.0,0.00054794,120]
[314313191,1708175455396,-500.0,0.00054794,120]
[314313192,1708175455405,-500.0,0.00054794,120]
[314313193,1708175455414,-524.03356389,0.00054794,120]
[314313194,1708175455423,-519.89121865,0.00054794,120]
[314313195,1708175455432,-500.0,0.00054794,120]
[314313196,1708175455441,-157.32709944,0.00054794,7]
[314313197,1708175455449,-535.15496341,0.00054794,120]
[314313198,1708175455458,-573.10986952,0.00054794,120]
[314313199,1708175455467,-500.0,0.00054794,120]
[314313200,1708175455476,-518.5680107,0.00054794,120]
[314313201,1708175455485,-553.16004552,0.00054794,120]
[314313202,1708175455494,-500.0,0.00054794,120]
[314313203,1708175455503,-500.0,0.00054794,120]
[314313204,1708175455512,-262.16338056,0.00054794,120]
[314313205,1708175455521,-474.61864417,0.00054794,120]
[314313206,1708175455530,-269.40639238,0.00054794,120]
[314313207,1708175455539,-500.0,0.00054794,120]
[314313208,1708175455549,-176.71156356,0.00054794,120]
[314313209,1708175455558,-500.0,0.00054794,120]
[314313210,1708175455567,-500.0,0.00054794,120]
[314313211,1708175455577,-500.0,0.00054794,120]
[314313212,1708175455585,-506.19113417,0.00054794,120]
[314313213,1708175455595,-500.0,0.00054794,120]
[314313214,1708175455604,-518.56475621,0.00054794,120]
[314313215,1708175455613,-498.92018048,0.00054794,120]
[314313216,1708175455623,-500.0,0.00054794,120]
[314313217,1708175455632,-535.02644965,0.00054794,120]
[314313218,1708175455642,-500.0,0.00054794,120]
[314313219,1708175455651,-500.0,0.00054794,120]
[314313220,1708175455661,-500.0,0.00054794,120]
[314313221,1708175455671,-624.76274017,0.00054794,120]
[314313222,1708175455680,-524.89362049,0.00054794,120]
[314313223,1708175455689,-500.0,0.00054794,120]
[314313224,1708175455699,-500.0,0.00054794,120]
[314313225,1708175455708,-552.28353946,0.00054794,120]
[314313226,1708175455718,-1000.0,0.00054794,7]
[314313227,1708175455727,-510.88315316,0.00054794,120]
[314313228,1708175455736,-548.85442974,0.00054794,120]
[314313229,1708175455744,-500.0,0.00054794,120]
[314313230,1708175455754,-500.0,0.00054794,120]
[314313231,1708175455764,-515.52513611,0.00054794,120]
[314313232,1708175455773,-500.0,0.00054794,120]
[314313233,1708175455783,-500.0,0.00054794,120]
[314313234,1708175455792,-516.70345284,0.00054794,120]
[314313235,1708175455802,-558.57814119,0.00054794,120]
[314313236,1708175455812,-500.0,0.00054794,120]
[314313237,1708175455822,-500.0,0.00054794,120]
[314313238,1708175455831,-507.44322077,0.00054794,120]
[314313239,1708175455841,-500.0,0.00054794,120]
[314313240,1708175455850,-500.0,0.00054794,120]
[314313241,1708175455859,-500.0,0.00054794,120]
[314313242,1708175455868,-524.1151831,0.00054794,120]
[314313243,1708175455878,-282.8206388,0.00054794,120]
[314313244,1708175455887,-513.80829902,0.00054794,120]
[314313245,1708175455896,-500.0,0.00054794,120]
[314313246,1708175455905,-624.61673098,0.00054794,120]
[314313247,1708175455915,-150.0,0.00054794,120]
[314313248,1708175455925,-500.0,0.00054794,120]
[314313249,1708175455934,-500.0,0.00054794,120]
[314313250,1708175455945,-572.48281566,0.00054794,120]
[314313251,1708175455954,-500.0,0.00054794,120]
[314313252,1708175455963,-523.94458061,0.00054794,120]
[314313253,1708175455973,-500.0,0.00054794,120]
[314313254,1708175455983,-546.31711893,0.00054794,120]
[314313255,1708175456083,-1000.0,0.00054794,120]
[314313256,1708175456092,-500.0,0.00054794,120]
[314313257,1708175456102,-554.58171665,0.00054794,120]
[314313258,1708175456111,-500.0,0.00054794,120]
[314313259,1708175456120,-500.0,0.00054794,120]
[314313260,1708175456129,-544.97315036,0.00054794,120]
[314313261,1708175456138,-500.0,0.00054794,120]
[314313262,1708175456147,-560.53775813,0.00054794,120]
[314313263,1708175456156,-500.0,0.00054794,120]
[314313264,1708175456166,-682.3,0.00054794,120]
[314313265,1708175456175,-500.0,0.00054794,120]
[314313266,1708175456184,-500.0,0.00054794,120]
[314313267,1708175456194,-500.0,0.00054794,120]
[314313268,1708175456203,-509.83242708,0.00054794,120]
[314313269,1708175456212,-500.0,0.00054794,120]
[314313270,1708175456221,-212.9669228,0.00054794,120]
[314313271,1708175456230,-500.0,0.00054794,120]
[314313272,1708175456239,-500.0,0.00054794,120]
[314313273,1708175456248,-500.0,0.00054794,120]
[314313274,1708175456257,-500.0,0.00054794,120]
[314313275,1708175456266,-340.80228542,0.00054794,120]
[314313276,1708175456275,-500.0,0.00054794,120]
[314313277,1708175456284,-500.0,0.00054794,120]
[314313278,1708175456293,-280.03681728,0.00054794,120]
[314313279,1708175456302,-538.20127631,0.00054794,120]
[314313280,1708175456311,-500.0,0.00054794,120]
[314313281,1708175456320,-500.0,0.00054794,120]
[314313282,1708175456329,-500.0,0.00054794,120]
[314313283,1708175456338,-1931.191102,0.00054794,120]
[314313284,1708175456347,-500.0,0.00054794,120]
[314313285,1708175456356,-525.89522856,0.00054794,120]
[314313286,1708175456365,-500.0,0.00054794,2]
[314313287,1708175456375,-500.0,0.00054794,120]
[314313288,1708175456383,-11995.229608,0.00054794,30]
[314313289,1708175456392,-520.64086645,0.00054794,120]
[314313290,1708175456401,-520.9361519,0.00054794,120]
[314313291,1708175456410,-500.0,0.00054794,120]
[314313292,1708175456420,-517.9946921,0.00054794,120]
[314313293,1708175456429,-500.0,0.00054794,120]
[314313294,1708175456438,-500.0,0.00054794,120]
[314313295,1708175456447,-532.33646259,0.00054794,120]
[314313296,1708175456455,-500.0,0.00054794,120]
[314313297,1708175456464,-500.0,0.00054794,120]
[314313298,1708175456473,-333.38474123,0.00054794,120]
[314313299,1708175456482,-539.43297449,0.00054794,120]
[314313300,1708175456491,-500.0,0.00054794,120]
[314313301,1708175456500,-313.70492157,0.00054794,120]
[314313302,1708175456509,-500.0,0.00054794,120]
[314313303,1708175456518,-500.0,0.00054794,120]
[314313304,1708175456527,-446.90560378,0.00054794,120]
[314313305,1708175456536,-547.79814095,0.00054794,120]
[314313306,1708175456545,-500.0,0.00054794,120]
[314313307,1708175456553,-502.45080842,0.00054794,120]
[314313308,1708175456563,-540.50670351,0.00054794,120]
[314313309,1708175456573,-500.0,0.00054794,120]
[314313310,1708175456582,-500.0,0.00054794,120]
[314313311,1708175456591,-500.0,0.00054794,120]
[314313312,1708175456600,-555.53018768,0.00054794,120]
[314313313,1708175456610,-500.0,0.00054794,120]
[314313314,1708175456619,-500.0,0.00054794,120]
[314313315,1708175456629,-500.0,0.00054794,120]
[314313316,1708175456638,-500.0,0.00054794,120]
[314313317,1708175456647,-500.0,0.00054794,120]
[314313318,1708175456656,-500.0,0.00054794,120]
[314313319,1708175456667,-500.0,0.00054794,120]
[314313320,1708175456676,-500.0,0.00054794,120]
[314313321,1708175456686,-566.11653482,0.00054794,120]